[Event "Titled Tuesday Blitz January 17 Early 2023"]
[White "Pein, Jonathan"]
[Black "Degtiarev, Evgeny"]
[WhiteFideId "417092"]
[BlackFideId "4149610"]
[WhiteElo "2265"]
[BlackElo "2385"]
[Result "1/2-1/2"]
[Round "02"]
[TimeControl "180+2"]
[Date "2023.01.17"]
[WhiteClock "0:00:30"]
[BlackClock "0:00:18"]

1. d4 {[%clk 0:03:00]}  d5 {[%clk 0:02:59]} 2. c4 {[%clk 0:02:59]}  c6 {[%clk 0:03:00]} 3. cxd5 {[%clk 0:02:58]}  cxd5 {[%clk 0:03:01]} 4. Nc3 {[%clk 0:02:59]}  Nf6 {[%clk 0:03:01]} 5. Bf4 {[%clk 0:02:59]}  a6 {[%clk 0:03:01]} 6. e3 {[%clk 0:02:59]}  Nc6 {[%clk 0:03:02]} 7. Rc1 {[%clk 0:02:59]}  e6 {[%clk 0:03:00]} 8. Nf3 {[%clk 0:02:59]}  Bd6 {[%clk 0:03:00]} 9. Bg3 {[%clk 0:02:58]}  O-O {[%clk 0:02:59]} 10. Bd3 {[%clk 0:02:59]}  h6 {[%clk 0:02:53]} 11. Bb1 {[%clk 0:02:58]}  Bxg3 {[%clk 0:02:44]} 12. hxg3 {[%clk 0:02:57]}  Qd6 {[%clk 0:02:44]} 13. Qd3 {[%clk 0:02:44]}  e5 {[%clk 0:02:35]} 14. dxe5 {[%clk 0:02:43]}  Nxe5 {[%clk 0:02:36]} 15. Nxe5 {[%clk 0:02:41]}  Qxe5 {[%clk 0:02:37]} 16. Rh4 {[%clk 0:02:29]}  Be6 {[%clk 0:02:18]} 17. Rf4 {[%clk 0:02:27]}  g6 {[%clk 0:02:10]} 18. Qd4 {[%clk 0:02:14]}  Qxd4 {[%clk 0:02:07]} 19. Rxd4 {[%clk 0:02:15]}  Rfc8 {[%clk 0:01:47]} 20. a3 {[%clk 0:02:10]}  Rc4 {[%clk 0:01:36]} 21. Rcd1 {[%clk 0:02:09]}  Rxd4 {[%clk 0:01:36]} 22. Rxd4 {[%clk 0:02:10]}  Rc8 {[%clk 0:01:34]} 23. Ba2 {[%clk 0:02:10]}  Rc5 {[%clk 0:01:34]} 24. Kd2 {[%clk 0:02:05]}  a5 {[%clk 0:01:17]} 25. b4 {[%clk 0:02:00]}  axb4 {[%clk 0:01:17]} 26. axb4 {[%clk 0:02:01]}  Rc7 {[%clk 0:00:53]} 27. Nxd5 {[%clk 0:01:48]}  Bxd5 {[%clk 0:00:51]} 28. Bxd5 {[%clk 0:01:49]}  Nxd5 {[%clk 0:00:51]} 29. Rxd5 {[%clk 0:01:48]}  h5 {[%clk 0:00:51]} 30. b5 {[%clk 0:01:38]}  Kf8 {[%clk 0:00:49]} 31. Re5 {[%clk 0:01:29]}  f6 {[%clk 0:00:40]} 32. Re6 {[%clk 0:01:29]}  Kf7 {[%clk 0:00:41]} 33. Rb6 {[%clk 0:01:23]}  Ke7 {[%clk 0:00:40]} 34. Ke2 {[%clk 0:01:20]}  Rd7 {[%clk 0:00:39]} 35. Kf3 {[%clk 0:01:17]}  Kf7 {[%clk 0:00:38]} 36. g4 {[%clk 0:01:16]}  h4 {[%clk 0:00:36]} 37. g5 {[%clk 0:01:11]}  f5 {[%clk 0:00:29]} 38. Rf6+ {[%clk 0:01:10]}  Kg7 {[%clk 0:00:28]} 39. b6 {[%clk 0:01:03]}  Rd5 {[%clk 0:00:23]} 40. Re6 {[%clk 0:00:57]}  Kf7 {[%clk 0:00:22]} 41. Rf6+ {[%clk 0:00:57]}  Kg7 {[%clk 0:00:22]} 42. Ke2 {[%clk 0:00:34]}  Rd7 {[%clk 0:00:18]} 43. Kf3 {[%clk 0:00:30]}  Rd5 {[%clk 0:00:18]} 1/2-1/2


[Site "https://www.chess.com"]

[Event "Titled Tuesday Blitz January 17 Early 2023"]
[White "Shuvalov, Evgenij"]
[Black "Alfaro, William"]
[WhiteFideId "4187237"]
[BlackFideId "6100457"]
[WhiteElo "2038"]
[BlackElo "2134"]
[Result "0-1"]
[Round "02"]
[TimeControl "180+2"]
[Date "2023.01.17"]
[WhiteClock "0:00:17"]
[BlackClock "0:00:40"]

1. d4 {[%clk 0:03:00]}  Nf6 {[%clk 0:02:57]} 2. c4 {[%clk 0:03:00]}  g6 {[%clk 0:02:55]} 3. Nc3 {[%clk 0:02:59]}  Bg7 {[%clk 0:02:53]} 4. e4 {[%clk 0:02:59]}  d6 {[%clk 0:02:52]} 5. Nf3 {[%clk 0:02:59]}  O-O {[%clk 0:02:50]} 6. Be2 {[%clk 0:02:59]}  e5 {[%clk 0:02:33]} 7. O-O {[%clk 0:02:58]}  Nc6 {[%clk 0:02:32]} 8. d5 {[%clk 0:02:58]}  Ne7 {[%clk 0:02:30]} 9. Ne1 {[%clk 0:02:59]}  Nd7 {[%clk 0:02:30]} 10. f3 {[%clk 0:02:59]}  f5 {[%clk 0:02:19]} 11. g4 {[%clk 0:03:00]}  fxg4 {[%clk 0:02:20]} 12. fxg4 {[%clk 0:03:00]}  Rxf1+ {[%clk 0:02:21]} 13. Kxf1 {[%clk 0:03:01]}  h6 {[%clk 0:02:21]} 14. h4 {[%clk 0:03:01]}  Kh7 {[%clk 0:02:18]} 15. Be3 {[%clk 0:02:55]}  Ng8 {[%clk 0:02:17]} 16. Ng2 {[%clk 0:02:51]}  b6 {[%clk 0:02:10]} 17. b4 {[%clk 0:02:47]}  a5 {[%clk 0:02:10]} 18. a3 {[%clk 0:02:46]}  Qf6+ {[%clk 0:02:08]} 19. Kg1 {[%clk 0:02:44]}  Nf8 {[%clk 0:02:05]} 20. Nb5 {[%clk 0:02:39]}  Qf7 {[%clk 0:01:59]} 21. Qf1 {[%clk 0:02:36]}  Qe7 {[%clk 0:01:54]} 22. Rc1 {[%clk 0:02:21]}  axb4 {[%clk 0:01:50]} 23. axb4 {[%clk 0:02:21]}  Ba6 {[%clk 0:01:49]} 24. c5 {[%clk 0:02:16]}  bxc5 {[%clk 0:01:46]} 25. bxc5 {[%clk 0:02:16]}  Bxb5 {[%clk 0:01:44]} 26. Bxb5 {[%clk 0:02:16]}  Nf6 {[%clk 0:01:43]} 27. Qf3 {[%clk 0:02:09]}  Ra3 {[%clk 0:01:42]} 28. cxd6 {[%clk 0:02:01]}  cxd6 {[%clk 0:01:42]} 29. Rc8 {[%clk 0:01:39]}  h5 {[%clk 0:01:27]} 30. g5 {[%clk 0:01:29]}  Ng4 {[%clk 0:01:26]} 31. Bf1 {[%clk 0:01:01]}  Kg8 {[%clk 0:01:07]} 32. Qe2 {[%clk 0:00:51]}  Qb7 {[%clk 0:00:58]} 33. Rc1 {[%clk 0:00:46]}  Qb3 {[%clk 0:00:57]} 34. Bf2 {[%clk 0:00:42]}  Qh3 {[%clk 0:00:56]} 35. Qxg4 {[%clk 0:00:29]}  Qxg4 {[%clk 0:00:46]} 36. Re1 {[%clk 0:00:27]}  Nd7 {[%clk 0:00:44]} 37. Be2 {[%clk 0:00:21]}  Qxe4 {[%clk 0:00:43]} 38. Bb5 {[%clk 0:00:20]}  Qg4 {[%clk 0:00:43]} 39. Bxd7 {[%clk 0:00:18]}  Qxd7 {[%clk 0:00:42]} 40. Rc1 {[%clk 0:00:18]}  Ra2 {[%clk 0:00:42]} 41. Rf1 {[%clk 0:00:17]}  e4 {[%clk 0:00:40]} 0-1


[Site "https://www.chess.com"]

[Event "Titled Tuesday Blitz January 17 Early 2023"]
[White "Mammadzada, Gunay"]
[Black "Sohier, Julien"]
[WhiteFideId "13403729"]
[BlackFideId "645346"]
[WhiteElo "2449"]
[BlackElo "2214"]
[Result "1/2-1/2"]
[Round "02"]
[TimeControl "180+2"]
[Date "2023.01.17"]
[WhiteClock "0:00:19"]
[BlackClock "0:00:23"]

1. e4 {[%clk 0:02:57]}  e5 {[%clk 0:02:58]} 2. Nf3 {[%clk 0:02:57]}  Nc6 {[%clk 0:02:56]} 3. Bb5 {[%clk 0:02:57]}  Nf6 {[%clk 0:02:53]} 4. O-O {[%clk 0:02:56]}  Nxe4 {[%clk 0:02:52]} 5. d4 {[%clk 0:02:50]}  Nd6 {[%clk 0:02:51]} 6. dxe5 {[%clk 0:02:50]}  Nxb5 {[%clk 0:02:51]} 7. a4 {[%clk 0:02:50]}  Nbd4 {[%clk 0:02:48]} 8. Nxd4 {[%clk 0:02:50]}  Nxd4 {[%clk 0:02:48]} 9. Qxd4 {[%clk 0:02:51]}  d5 {[%clk 0:02:49]} 10. Qd3 {[%clk 0:02:51]}  Be7 {[%clk 0:02:45]} 11. Nc3 {[%clk 0:02:48]}  c6 {[%clk 0:02:45]} 12. Ne2 {[%clk 0:02:46]}  O-O {[%clk 0:02:41]} 13. Be3 {[%clk 0:02:46]}  a6 {[%clk 0:02:36]} 14. f4 {[%clk 0:02:46]}  g6 {[%clk 0:02:25]} 15. c3 {[%clk 0:02:38]}  Bf5 {[%clk 0:02:24]} 16. Qd2 {[%clk 0:02:38]}  Qd7 {[%clk 0:02:17]} 17. Ng3 {[%clk 0:02:38]}  f6 {[%clk 0:02:02]} 18. b4 {[%clk 0:02:31]}  fxe5 {[%clk 0:01:59]} 19. fxe5 {[%clk 0:02:32]}  Be6 {[%clk 0:01:58]} 20. Bd4 {[%clk 0:02:28]}  Rxf1+ {[%clk 0:01:57]} 21. Rxf1 {[%clk 0:02:27]}  Rf8 {[%clk 0:01:58]} 22. Rf6 {[%clk 0:02:22]}  Bxf6 {[%clk 0:01:54]} 23. exf6 {[%clk 0:02:23]}  Rf7 {[%clk 0:01:53]} 24. Qg5 {[%clk 0:02:18]}  Bf5 {[%clk 0:01:48]} 25. h4 {[%clk 0:02:14]}  h5 {[%clk 0:01:39]} 26. Nxh5 {[%clk 0:02:12]}  Be4 {[%clk 0:01:33]} 27. Ng3 {[%clk 0:02:09]}  Qe6 {[%clk 0:01:02]} 28. h5 {[%clk 0:02:08]}  Kh7 {[%clk 0:01:02]} 29. Be5 {[%clk 0:01:53]}  Bc2 {[%clk 0:00:50]} 30. Ne2 {[%clk 0:01:26]}  Qf5 {[%clk 0:00:44]} 31. Qxf5 {[%clk 0:01:18]}  gxf5 {[%clk 0:00:42]} 32. Nd4 {[%clk 0:01:14]}  Be4 {[%clk 0:00:42]} 33. Ne6 {[%clk 0:01:12]}  Kh6 {[%clk 0:00:30]} 34. Ng7 {[%clk 0:00:47]}  Bc2 {[%clk 0:00:27]} 35. a5 {[%clk 0:00:47]}  Kg5 {[%clk 0:00:21]} 36. Ne8 {[%clk 0:00:41]}  Kxh5 {[%clk 0:00:20]} 37. Nd6 {[%clk 0:00:41]}  Kg6 {[%clk 0:00:20]} 38. Nxf7 {[%clk 0:00:38]}  Kxf7 {[%clk 0:00:21]} 39. Kf2 {[%clk 0:00:39]}  Be4 {[%clk 0:00:21]} 40. Ke3 {[%clk 0:00:39]}  Bxg2 {[%clk 0:00:20]} 41. Kd4 {[%clk 0:00:38]}  Be4 {[%clk 0:00:20]} 42. Kc5 {[%clk 0:00:37]}  f4 {[%clk 0:00:20]} 43. Kb6 {[%clk 0:00:32]}  Bd3 {[%clk 0:00:19]} 44. Kxb7 {[%clk 0:00:29]}  Bb5 {[%clk 0:00:20]} 45. Bxf4 {[%clk 0:00:25]}  Kxf6 {[%clk 0:00:20]} 46. Kb6 {[%clk 0:00:25]}  Kf5 {[%clk 0:00:20]} 47. Bd6 {[%clk 0:00:26]}  Ke4 {[%clk 0:00:20]} 48. Bc5 {[%clk 0:00:26]}  Kd3 {[%clk 0:00:20]} 49. Bd4 {[%clk 0:00:27]}  Kc4 {[%clk 0:00:20]} 50. Kc7 {[%clk 0:00:27]}  Kb3 {[%clk 0:00:21]} 51. Kd6 {[%clk 0:00:27]}  Kc4 {[%clk 0:00:21]} 52. Ke5 {[%clk 0:00:26]}  Kb3 {[%clk 0:00:21]} 53. Ke6 {[%clk 0:00:25]}  Kc4 {[%clk 0:00:22]} 54. Kd6 {[%clk 0:00:25]}  Kb3 {[%clk 0:00:23]} 55. Kc5 {[%clk 0:00:26]}  Kc2 {[%clk 0:00:23]} 56. Kd6 {[%clk 0:00:19]}  Kb3 {[%clk 0:00:23]} 1/2-1/2


[Site "https://www.chess.com"]

[Event "Titled Tuesday Blitz January 17 Early 2023"]
[White "Sovetbekova, Nurai"]
[Black "Kozin, Yuri"]
[WhiteFideId "13801910"]
[BlackFideId "4129920"]
[WhiteElo "1764"]
[BlackElo "2251"]
[Result "0-1"]
[Round "02"]
[TimeControl "180+2"]
[Date "2023.01.17"]
[WhiteClock "0:00:02"]
[BlackClock "0:00:13"]

1. d4 {[%clk 0:03:00]}  d5 {[%clk 0:02:59]} 2. c4 {[%clk 0:03:00]}  c6 {[%clk 0:03:00]} 3. Nf3 {[%clk 0:03:00]}  Nf6 {[%clk 0:03:00]} 4. g3 {[%clk 0:03:00]}  g6 {[%clk 0:03:01]} 5. Qa4 {[%clk 0:02:51]}  Bg7 {[%clk 0:02:58]} 6. cxd5 {[%clk 0:02:50]}  Nxd5 {[%clk 0:02:59]} 7. Bg2 {[%clk 0:02:49]}  O-O {[%clk 0:02:59]} 8. O-O {[%clk 0:02:47]}  a5 {[%clk 0:02:58]} 9. Rd1 {[%clk 0:02:40]}  Bf5 {[%clk 0:02:54]} 10. Bf4 {[%clk 0:02:19]}  Nb4 {[%clk 0:02:52]} 11. Na3 {[%clk 0:02:11]}  Nd7 {[%clk 0:02:51]} 12. Rd2 {[%clk 0:01:53]}  Nb6 {[%clk 0:02:43]} 13. Qd1 {[%clk 0:01:52]}  N6d5 {[%clk 0:02:38]} 14. Nc4 {[%clk 0:01:24]}  Nxf4 {[%clk 0:02:35]} 15. gxf4 {[%clk 0:01:24]}  Nd5 {[%clk 0:02:28]} 16. e3 {[%clk 0:01:22]}  Qc7 {[%clk 0:02:13]} 17. Rc1 {[%clk 0:01:19]}  a4 {[%clk 0:02:06]} 18. Nfe5 {[%clk 0:01:09]}  Be6 {[%clk 0:01:55]} 19. Qf3 {[%clk 0:00:46]}  Nb4 {[%clk 0:01:49]} 20. a3 {[%clk 0:00:42]}  Nd5 {[%clk 0:01:49]} 21. e4 {[%clk 0:00:36]}  Nf6 {[%clk 0:01:43]} 22. Qe2 {[%clk 0:00:29]}  Rfd8 {[%clk 0:01:32]} 23. Ne3 {[%clk 0:00:26]}  Bb3 {[%clk 0:01:18]} 24. d5 {[%clk 0:00:22]}  c5 {[%clk 0:01:10]} 25. Qb5 {[%clk 0:00:18]}  b6 {[%clk 0:01:07]} 26. Qe2 {[%clk 0:00:12]}  Nh5 {[%clk 0:01:05]} 27. Nd3 {[%clk 0:00:10]}  Nxf4 {[%clk 0:01:03]} 28. Nxf4 {[%clk 0:00:11]}  Qxf4 {[%clk 0:01:04]} 29. Qb5 {[%clk 0:00:11]}  Be5 {[%clk 0:00:57]} 30. h3 {[%clk 0:00:09]}  Bd4 {[%clk 0:00:48]} 31. Re2 {[%clk 0:00:09]}  Rab8 {[%clk 0:00:38]} 32. Rce1 {[%clk 0:00:08]}  Rdc8 {[%clk 0:00:35]} 33. Nc4 {[%clk 0:00:08]}  Bxc4 {[%clk 0:00:33]} 34. Qxc4 {[%clk 0:00:09]}  b5 {[%clk 0:00:34]} 35. Qd3 {[%clk 0:00:09]}  Be5 {[%clk 0:00:34]} 36. Re3 {[%clk 0:00:06]}  b4 {[%clk 0:00:33]} 37. Rf3 {[%clk 0:00:05]}  Qh2+ {[%clk 0:00:31]} 38. Kf1 {[%clk 0:00:05]}  c4 {[%clk 0:00:30]} 39. Qd2 {[%clk 0:00:02]}  c3 {[%clk 0:00:28]} 40. Qg5 {[%clk 0:00:02]}  cxb2 {[%clk 0:00:25]} 41. Qxe7 {[%clk 0:00:02]}  Rc1 {[%clk 0:00:13]} 42. Qxf7+ {[%clk 0:00:02]}  Kh8 {[%clk 0:00:13]} 0-1


[Site "https://www.chess.com"]

[Event "Titled Tuesday Blitz January 17 Early 2023"]
[White "Martin Duque, Jesus"]
[Black "Skurikhin, Dmitrij"]
[WhiteFideId "2208954"]
[BlackFideId "4161297"]
[WhiteElo "2386"]
[BlackElo "2297"]
[Result "1-0"]
[Round "02"]
[TimeControl "180+2"]
[Date "2023.01.17"]
[WhiteClock "0:02:33"]
[BlackClock "0:01:56"]

1. Nf3 {[%clk 0:03:00]}  d5 {[%clk 0:02:59]} 2. b3 {[%clk 0:03:00]}  c5 {[%clk 0:02:59]} 3. e3 {[%clk 0:02:55]}  a6 {[%clk 0:02:58]} 4. c4 {[%clk 0:02:53]}  d4 {[%clk 0:02:56]} 5. g3 {[%clk 0:02:51]}  Bg4 {[%clk 0:02:55]} 6. Bg2 {[%clk 0:02:50]}  Nc6 {[%clk 0:02:54]} 7. O-O {[%clk 0:02:50]}  e5 {[%clk 0:02:54]} 8. exd4 {[%clk 0:02:50]}  exd4 {[%clk 0:02:50]} 9. h3 {[%clk 0:02:49]}  Bh5 {[%clk 0:02:48]} 10. Qe1+ {[%clk 0:02:49]}  Be7 {[%clk 0:02:46]} 11. Ne5 {[%clk 0:02:49]}  Nb4 {[%clk 0:02:26]} 12. Bxb7 {[%clk 0:02:45]}  Rb8 {[%clk 0:02:25]} 13. Bc6+ {[%clk 0:02:44]}  Nxc6 {[%clk 0:02:24]} 14. Nxc6 {[%clk 0:02:43]}  Qc7 {[%clk 0:02:24]} 15. Nxb8 {[%clk 0:02:43]}  Qxb8 {[%clk 0:02:24]} 16. d3 {[%clk 0:02:42]}  Bf3 {[%clk 0:02:16]} 17. Bf4 {[%clk 0:02:42]}  Qc8 {[%clk 0:02:14]} 18. Kh2 {[%clk 0:02:41]}  Qd7 {[%clk 0:02:11]} 19. Nd2 {[%clk 0:02:41]}  Bb7 {[%clk 0:02:05]} 20. Ne4 {[%clk 0:02:40]}  Kf8 {[%clk 0:02:04]} 21. Qa5 {[%clk 0:02:35]}  f5 {[%clk 0:01:56]} 22. Nxc5 {[%clk 0:02:33]} 1-0


[Site "https://www.chess.com"]

[Event "Titled Tuesday Blitz January 17 Early 2023"]
[White "Bettalli, Francesco"]
[Black "Lakshmi C"]
[WhiteFideId "2816453"]
[BlackFideId "25035347"]
[WhiteElo "2252"]
[BlackElo "1928"]
[Result "1-0"]
[Round "02"]
[TimeControl "180+2"]
[Date "2023.01.17"]
[WhiteClock "0:00:31"]
[BlackClock "0:00:01"]

1. d4 {[%clk 0:03:00]}  Nf6 {[%clk 0:02:49]} 2. Nc3 {[%clk 0:02:58]}  d5 {[%clk 0:02:47]} 3. Bf4 {[%clk 0:02:57]}  e6 {[%clk 0:02:46]} 4. Nb5 {[%clk 0:02:55]}  Na6 {[%clk 0:02:42]} 5. e3 {[%clk 0:02:55]}  c6 {[%clk 0:02:40]} 6. Nc3 {[%clk 0:02:44]}  b5 {[%clk 0:02:32]} 7. a3 {[%clk 0:02:40]}  Nc7 {[%clk 0:02:29]} 8. Nf3 {[%clk 0:02:40]}  a5 {[%clk 0:02:27]} 9. Ne5 {[%clk 0:02:35]}  Bb7 {[%clk 0:02:23]} 10. Be2 {[%clk 0:02:31]}  Nd7 {[%clk 0:02:21]} 11. O-O {[%clk 0:02:28]}  Nxe5 {[%clk 0:02:21]} 12. Bxe5 {[%clk 0:02:28]}  Bd6 {[%clk 0:02:19]} 13. f4 {[%clk 0:02:26]}  f6 {[%clk 0:02:09]} 14. Bd3 {[%clk 0:02:13]}  g6 {[%clk 0:01:53]} 15. Qg4 {[%clk 0:02:06]}  fxe5 {[%clk 0:01:39]} 16. fxe5 {[%clk 0:02:05]}  Be7 {[%clk 0:01:39]} 17. e4 {[%clk 0:01:49]}  dxe4 {[%clk 0:00:33]} 18. Nxe4 {[%clk 0:01:45]}  Qxd4+ {[%clk 0:00:30]} 19. Kh1 {[%clk 0:01:44]}  Qxe5 {[%clk 0:00:26]} 20. Rae1 {[%clk 0:01:41]}  O-O-O {[%clk 0:00:23]} 21. b4 {[%clk 0:01:21]}  axb4 {[%clk 0:00:19]} 22. axb4 {[%clk 0:01:22]}  Qd5 {[%clk 0:00:17]} 23. Rf7 {[%clk 0:01:19]}  Bxb4 {[%clk 0:00:16]} 24. Ref1 {[%clk 0:01:06]}  Qh5 {[%clk 0:00:14]} 25. Qg3 {[%clk 0:01:03]}  Nd5 {[%clk 0:00:13]} 26. Nf6 {[%clk 0:00:59]}  Bd6 {[%clk 0:00:10]} 27. Nxh5 {[%clk 0:00:42]}  Bxg3 {[%clk 0:00:10]} 28. Nxg3 {[%clk 0:00:43]}  Ne3 {[%clk 0:00:06]} 29. R1f6 {[%clk 0:00:41]}  Nf5 {[%clk 0:00:04]} 30. Rxe6 {[%clk 0:00:37]}  Nxg3+ {[%clk 0:00:04]} 31. hxg3 {[%clk 0:00:38]}  Kb8 {[%clk 0:00:02]} 32. Ree7 {[%clk 0:00:38]}  Ba6 {[%clk 0:00:02]} 33. Be4 {[%clk 0:00:36]}  Rd6 {[%clk 0:00:01]} 34. g4 {[%clk 0:00:32]}  g5 {[%clk 0:00:01]} 35. Kh2 {[%clk 0:00:32]}  Rh6+ {[%clk 0:00:01]} 36. Kg3 {[%clk 0:00:32]}  Rd8 {[%clk 0:00:01]} 37. Kf2 {[%clk 0:00:31]} 1-0


[Site "https://www.chess.com"]

[Event "Titled Tuesday Blitz January 17 Early 2023"]
[White "Trigo Urquijo, Sergio"]
[Black "Afanasieva, Alexandra"]
[WhiteFideId "2262436"]
[BlackFideId "34126926"]
[WhiteElo "2408"]
[BlackElo "1857"]
[Result "1-0"]
[Round "02"]
[TimeControl "180+2"]
[Date "2023.01.17"]
[WhiteClock "0:00:23"]
[BlackClock "0:00:08"]

1. b3 {[%clk 0:03:00]}  d5 {[%clk 0:02:59]} 2. Bb2 {[%clk 0:02:59]}  Nf6 {[%clk 0:02:59]} 3. e3 {[%clk 0:02:52]}  g6 {[%clk 0:02:57]} 4. c4 {[%clk 0:02:47]}  c6 {[%clk 0:02:51]} 5. cxd5 {[%clk 0:02:46]}  cxd5 {[%clk 0:02:51]} 6. Bxf6 {[%clk 0:02:46]}  exf6 {[%clk 0:02:51]} 7. d4 {[%clk 0:02:47]}  Bf5 {[%clk 0:02:31]} 8. Bd3 {[%clk 0:02:36]}  Bb4+ {[%clk 0:02:23]} 9. Ke2 {[%clk 0:02:32]}  Be4 {[%clk 0:02:06]} 10. Nf3 {[%clk 0:02:24]}  O-O {[%clk 0:02:03]} 11. a3 {[%clk 0:02:22]}  Bd6 {[%clk 0:01:57]} 12. Nc3 {[%clk 0:02:16]}  Re8 {[%clk 0:01:55]} 13. Bxe4 {[%clk 0:01:57]}  dxe4 {[%clk 0:01:56]} 14. Nd2 {[%clk 0:01:57]}  f5 {[%clk 0:01:55]} 15. Nc4 {[%clk 0:01:50]}  Nc6 {[%clk 0:01:51]} 16. g3 {[%clk 0:01:48]}  Rc8 {[%clk 0:01:50]} 17. h4 {[%clk 0:01:47]}  a6 {[%clk 0:01:48]} 18. Nxd6 {[%clk 0:01:34]}  Qxd6 {[%clk 0:01:49]} 19. Na4 {[%clk 0:01:35]}  Ne7 {[%clk 0:01:31]} 20. b4 {[%clk 0:01:11]}  Nd5 {[%clk 0:01:28]} 21. Qb3 {[%clk 0:01:05]}  Qd7 {[%clk 0:01:21]} 22. Rhc1 {[%clk 0:00:57]}  Qb5+ {[%clk 0:01:21]} 23. Ke1 {[%clk 0:00:58]}  b6 {[%clk 0:01:06]} 24. Rab1 {[%clk 0:00:33]}  a5 {[%clk 0:01:00]} 25. Nc3 {[%clk 0:00:33]}  Nxc3 {[%clk 0:00:50]} 26. Rxc3 {[%clk 0:00:33]}  a4 {[%clk 0:00:50]} 27. Qc2 {[%clk 0:00:31]}  Rxc3 {[%clk 0:00:38]} 28. Qxc3 {[%clk 0:00:32]}  Qd5 {[%clk 0:00:38]} 29. Rc1 {[%clk 0:00:31]}  Qa2 {[%clk 0:00:31]} 30. Rc2 {[%clk 0:00:28]}  Qb1+ {[%clk 0:00:28]} 31. Rc1 {[%clk 0:00:29]}  Qa2 {[%clk 0:00:29]} 32. Rc2 {[%clk 0:00:29]}  Qb1+ {[%clk 0:00:29]} 33. Ke2 {[%clk 0:00:29]}  Qh1 {[%clk 0:00:26]} 34. Rc1 {[%clk 0:00:28]}  Qf3+ {[%clk 0:00:26]} 35. Ke1 {[%clk 0:00:28]}  Qh1+ {[%clk 0:00:20]} 36. Kd2 {[%clk 0:00:28]}  Qf3 {[%clk 0:00:20]} 37. Rf1 {[%clk 0:00:24]}  Qg2 {[%clk 0:00:21]} 38. Ke2 {[%clk 0:00:24]}  Qf3+ {[%clk 0:00:21]} 39. Kd2 {[%clk 0:00:24]}  b5 {[%clk 0:00:18]} 40. Qc1 {[%clk 0:00:23]}  Qg2 {[%clk 0:00:17]} 41. Ke2 {[%clk 0:00:21]}  Qf3+ {[%clk 0:00:17]} 42. Kd2 {[%clk 0:00:21]}  Kg7 {[%clk 0:00:18]} 43. Qd1 {[%clk 0:00:21]}  Qg2 {[%clk 0:00:17]} 44. Qe2 {[%clk 0:00:20]}  Rc8 {[%clk 0:00:18]} 45. Rc1 {[%clk 0:00:20]}  Rxc1 {[%clk 0:00:17]} 46. Kxc1 {[%clk 0:00:21]}  Qh1+ {[%clk 0:00:18]} 47. Kb2 {[%clk 0:00:22]}  Qf3 {[%clk 0:00:15]} 48. Qxf3 {[%clk 0:00:21]}  exf3 {[%clk 0:00:16]} 49. Kc3 {[%clk 0:00:21]}  Kf6 {[%clk 0:00:16]} 50. Kd3 {[%clk 0:00:22]}  Ke6 {[%clk 0:00:16]} 51. e4 {[%clk 0:00:23]}  fxe4+ {[%clk 0:00:11]} 52. Kxe4 {[%clk 0:00:23]}  f5+ {[%clk 0:00:12]} 53. Kxf3 {[%clk 0:00:23]}  Kd5 {[%clk 0:00:13]} 54. Ke3 {[%clk 0:00:21]}  h6 {[%clk 0:00:12]} 55. Kd3 {[%clk 0:00:21]}  g5 {[%clk 0:00:11]} 56. hxg5 {[%clk 0:00:21]}  hxg5 {[%clk 0:00:12]} 57. f3 {[%clk 0:00:21]}  f4 {[%clk 0:00:08]} 58. g4 {[%clk 0:00:21]}  Kd6 {[%clk 0:00:07]} 59. Ke4 {[%clk 0:00:21]}  Ke6 {[%clk 0:00:07]} 60. d5+ {[%clk 0:00:22]}  Kd6 {[%clk 0:00:08]} 61. Kd4 {[%clk 0:00:23]} 1-0


[Site "https://www.chess.com"]